{"text_format":"2","workbook":"xlsx","n_sheets":1,"sheets":["Kertészeti termékek ..."],"not_rendered":{"charts":0,"images":0,"macros":0,"external_links":0,"defined_names":0,"comments":0,"pivot_tables":0},"unopened":[],"bounds":{"document_bytes":16777216,"sheet_cells":100000,"run_cost":"one","rows_first":2000,"rows_last":500,"rows_between":2000,"halvings":0,"cell_chars":16384,"cell_head_chars":4096},"cells_cut":0,"cells_raw":0,"read":"whole","date_system":"1900"}

{"sheet":"Kertészeti termékek ...","index":0,"n_rows":561,"n_cols":10,"rows_kept":561,"cut":false,"hidden":false,"merged":[[514,4,514,8],[11,2,11,3],[8,2,8,3],[2,1,2,3],[1,1,1,3],[3,1,3,3],[4,1,4,3]]}
[]
[null,"Ajánlattevő adatai:"]
[null,"Név :                                  "]
[null,"Adószám:                                       "]
[null,"Cím :                                  "]
[]
[null,null,null," Kelt:      2021.év...........hó...nap "]
[]
[null,null,"Tárgy: árajánlat "]
[null,null,"* Kérjük, hogy a megjegyzés rovatban szíveskedjenek feltüntetni az ÁFA mértékét, amennyiben az nem 27%!"]
[]
[null,null,"Keretszerződésben szereplő terméklista 1.részajánlati körben:"]
[]
[null,null,"Sorszám","Termék neve, leírás","Kiszerelési egység","Mennyiségi egység","Tervezett mennyiség összesen.","Nettó egységár","Mindösszesen ár","Megjegyzés*"]
[null,null,1,"Általános virágföld 40 liter",null,"zsák",300,null,{"$f":"H15*G15","v":0}]
[null,null,2," T idom 32*32*32 KKKDB",null,"db",1,null,{"$f":"H16*G16","v":0}]
[null,null,3," Virágtál, vörös, 20 cm",null,"db",50,null,0]
[null,null,4," Virágtál, vörös, 25 cm",null,"db",50,null,0]
[null,null,5," Virágtál, vörös, 30 cm",null,"db",50,null,0]
[null,null,6," Virágtál, vörös, 35 cm",null,"db",50,null,0]
[null,null,7," Virágtál, vörös, 40 cm",null,"db",50,null,0]
[null,null,8,"Antivespe  darázsírtó spray 750 ml",null,"db",1,null,0]
[null,null,9,"Árnyékháló Raschel 9,4m x 50 m",null,"méter",2,null,0]
[null,null,10,"Bálakötöző zsineg  PP 0,36 fehér natúr",null,"db",1,null,0]
[null,null,11,"Bálakötöző zsineg  PP 0,6 fehér natúr",null,"db",2,null,0]
[null,null,12,"Bilincs szuper 23-25/18 mm",null,"db",2,null,0]
[null,null,13,"Bilincs szuper 44-47",null,"db",6,null,0]
[null,null,14,"Biolux macskaalom 10 kg",null,"db",4,null,0]
[null,null,15,"Biostop kártevőfogó ragasztó 135 ml ",null,"db",2,null,0]
[null,null,16,"Biotoll rágcsálóírtó pép 150 g Ratimor",null,"db",5,null,0]
[null,null,17,"Combi patkányláda átlátszó tetővel",null,"db",4,null,0]
[null,null,18,"Combi patkányláda fekete tetővel",null,"db",1,null,0]
[null,null,19,"Combi patkányláda műanyag zárható",null,"db",1,null,0]
[null,null,20,"Csapadékmérő Bagi",null,"db",2,null,0]
[null,null,21,"Csapcsatlakozó 1\" -3/4\"",null,"db",2,null,0]
[null,null,22,"Csapcsatlakozó anyamenet 1\"",null,"db",40,null,0]
[null,null,23,"Csapcsatlakozó műanyag 3/4\"",null,"db",2,null,0]
[null,null,24,"Cserép szaporító 10 cm",null,"db",300,null,0]
[null,null,25,"Cserép szaporító 12 cm",null,"db",50,null,0]
[null,null,26,"Cserép szaporító 4cm",null,"db",30,null,0]
[null,null,27,"Csigatömlő 38- as",null,"méter",10,null,0]
[null,null,28,"Csigatömlő 40- es",null,"méter",10,null,0]
[null,null,29,"Csigatömlő 50 -es",null,"méter",10,null,0]
[null,null,30,"Díszcserép 20 cm",null,"db",50,null,0]
[null,null,31,"Díszcserép 26 cm",null,"db",50,null,0]
[null,null,32,"Díszcserép 30 cm",null,"db",50,null,0]
[null,null,33,"Díszcserép 35 cm",null,"db",50,null,0]
[null,null,34,"Díszcserép 40 cm",null,"db",50,null,0]
[null,null,35,"Díszcserép 45 cm",null,"db",40,null,0]
[null,null,36,"Díszcserép 50 cm",null,"db",40,null,0]
[null,null,37,"Díszcserép 60 cm",null,"db",80,null,0]
[null,null,38,"Díszcserép akasztós 20 cm",null,"db",20,null,0]
[null,null,39,"Díszcserép akasztós 26 cm",null,"db",20,null,0]
[null,null,40,"Díszcserép akasztós 30 cm",null,"db",20,null,0]
[null,null,41,"Díszcserép alátét 14 cm",null,"db",20,null,0]
[null,null,42,"Díszcserép alátét 17 cm",null,"db",20,null,0]
[null,null,43,"Díszcserép alátét 19 cm",null,"db",20,null,0]
[null,null,44,"Díszcserép alátét 22 cm",null,"db",20,null,0]
[null,null,45,"Díszcserép alátét 25 cm",null,"db",20,null,0]
[null,null,46,"Díszcserép alátét 28 cm",null,"db",20,null,0]
[null,null,47,"Díszcserép alátét 32 cm",null,"db",20,null,0]
[null,null,48,"Díszcserép alátét 37 cm",null,"db",20,null,0]
[null,null,49,"Díszcserép alátét 42 cm",null,"db",20,null,0]
[null,null,50,"Díszcserép alátét 50 cm",null,"db",20,null,0]
[null,null,51,"Dörzsvászon 100 230 x 280 mm",null,"db",1,null,0]
[null,null,52,"Dörzsvászon 180 230 x 280 mm",null,"db",5,null,0]
[null,null,53,"Dörzsvászon 60 230 x 280 mm",null,"db",5,null,0]
[null,null,54,"Dörzsvászon 80 230 x 280 mm",null,"db",5,null,0]
[null,null,55,"Emelőcsiga Gano2",null,"db",1,null,0]
[null,null,56,"Fanyelű kézi kapircs 115-ös",null,"db",5,null,0]
[null,null,57,"Fanyelű kézi kapircs 85mm",null,"db",5,null,0]
[null,null,58,"Faszén 2,5kg",null,"zsák",15,null,0]
[null,null,59,"Fenyőkéreg Florimo Borovi 0,5-30 mm 70 liter",null,"zsák",100,null,0]
[null,null,60,"Fenyőkéreg Florimo Borovi 30-80 mm 70 liter",null,"zsák",100,null,0]
[null,null,61,"Fenyőkéreg Florimo Dekor 15-25 mm 50 liter",null,"zsák",100,null,0]
[null,null,62,"Fenyőkéreg Florimo Dekor 20-40 mm 50 liter",null,"zsák",100,null,0]
[null,null,63,"Florimo agyaggranulátum dekor 5L",null,"zsák",50,null,0]
[null,null,64,"Florimo virágföld gyep-pázsit 50 liter",null,"zsák",5,null,0]
[null,null,65,"Fólia, fehér, UV 3 Ev 16-017-52",null,"db",5,null,{"$f":"H79*G79","v":0}]
[null,null,66,"Fólia, fekete, 4,2 x 80 m ",null,"db",1,null,0]
[null,null,67,"Fűmag árnyéktűrő Kite 5kg",null,"zsák",10,null,0]
[null,null,68,"Fűmag, sport",null,"zsák",1,null,0]
[null,null,69,"Fűmag, szárazságtűrő 20 kg",null,"zsák",5,null,0]
[null,null,70,"Fűrész ágvágó fémny toldh 40cm",null,"db",1,null,0]
[null,null,71,"Gazdasági kosár 50cm",null,"db",5,null,0]
[null,null,72,"Geotextília fekete 4,2m*100m 100g/m2",null,"db",1,null,0]
[null,null,73,"Golyóscsap 1x1 KB  ",null,"db",5,null,0]
[null,null,74,"Golyóscsap Mofém KBH 1/2\"",null,"db",5,null,0]
[null,null,75,"Golyóscsap NTM  KB 3/4\"",null,"db",5,null,0]
[null,null,76,"Golyóscsap NTM olasz BB 1\"",null,"db",5,null,0]
[null,null,77,"Golyóscsap NTM olasz BB 1/2\"",null,"db",10,null,0]
[null,null,78,"Golyóscsap NTM olasz BB 3/4\"",null,"db",10,null,0]
[null,null,79,"Golyóscsap NTM olasz KB 1\"",null,"db",10,null,0]
[null,null,80,"Golyóscsap NTM olasz KBH 1\"",null,"db",5,null,0]
[null,null,81,"Golyóscsap NTM olasz KBH 3/4\"",null,"db",5,null,0]
[null,null,82,"Gömbcsap Mofém BB 1/2\"",null,"db",5,null,0]
[null,null,83,"Gömbcsap Mofém BB 1/2\"",null,"db",15,null,0]
[null,null,84,"Görögdinnye Crimson sweet 2 g",null,"db",1,null,0]
[null,null,85,"Gyorscsatlakozó 1/2\"",null,"db",50,null,0]
[null,null,86,"Gyorscsatlakozó 3/4\"",null,"db",60,null,0]
[null,null,87,"Gyorscsatlakozó stoppos 3/4\" ",null,"db",10,null,0]
[null,null,88,"Hidrogén-peroxid 0,75kg",null,"db",1,null,0]
[null,null,89,"Hintahorog 8*120 facsavaros",null,"db",5,null,0]
[null,null,90,"Horganyzott csibefonat 32/0,6",null,"méter",20,null,0]
[null,null,91,"Hőmérő, minimum-maximum, analóg",null,"db",5,null,0]
[null,null,92,"Huzalfeszítő M12",null,"db",5,null,0]
[null,null,93,"Jelölő szalag piros-fehér 75mm*250m",null,"db",5,null,0]
[null,null,94,"Jutaszövet 100 x100 cm, sűrű szövés 220g/m2",null,"méter",30,null,0]
[null,null,95,"Kábelkötegelő  4,8 x 360 mm fekete",null,"db",200,null,0]
[null,null,96,"Kábelkötegelő 2,5 x 200 mm",null,"csomag",1,null,0]
[null,null,97,"Kábelkötegelő 3,6 x  280 mm",null,"db",300,null,0]
[null,null,98,"Kábelkötegelő 3,6 x 250 mm",null,"csomag",1,null,0]
[null,null,99,"Kábelkötegelő 4,3 x 480 mm fekete",null,"db",100,null,0]
[null,null,100,"Kábelkötegelő 4,8 x 300 mm",null,"csomag",5,null,0]
[null,null,101,"Kábelkötegelő 4,8 x 350 mm",null,"csomag",5,null,0]
[null,null,102,"Kábelkötegelő 4,8 x 430 mm",null,"db",100,null,0]
[null,null,103,"Kábelkötegelő 4,8 x 500 mm",null,"csomag",5,null,0]
[null,null,104,"Kád 80L ",null,"db",1,null,0]
[null,null,105,"Karmantyú BB 1\"",null,"db ",5,null,0]
[null,null,106,"Kaspószár kicsi",null,"db",30,null,0]
[null,null,107,"Kaspószár nagy",null,"db",30,null,0]
[null,null,108,"Kazánlapát fa nyéllel",null,"db",1,null,0]
[null,null,109,"Kenderzsineg 2/0,40 500g",null,"db",1,null,0]
[null,null,110,"Kenderzsineg 2/0,5 ",null,"db",5,null,0]
[null,null,111,"Kenderzsineg 2/0,9 200g",null,"db",5,null,0]
[null,null,112,"Kerámia kaspó 25 cm",null,"db",20,null,0]
[null,null,113,"Kerámia kaspó 30 cm",null,"db",20,null,0]
[null,null,114,"Kerék tömör felnis csapágyas 3,00-4\"",null,"db",4,null,0]
[null,null,115,"Kertészeti perlit 2-6 mm 5 liter",null,"zsák",20,null,0]
[null,null,116,"Kerti kifolyó 1\" GE",null,"db",1,null,0]
[null,null,117,"Kerti kifolyó karos tömlővéggel 1/2\"",null,"db",5,null,0]
[null,null,118,"Kerti kifolyó karos tömlővéggel 3/4\"",null,"db",5,null,0]
[null,null,119,"Kókuszbetét kókuszkosár 25cm",null,"db",20,null,0]
[null,null,120,"Kókuszbetét kókuszkosár 30cm",null,"db",25,null,0]
[null,null,121,"Kókuszbetét kókuszkosár 40cm",null,"db",20,null,0]
[null,null,122,"Kókuszrost tégla cca nyers 500g",null,"db",5,null,0]
[null,null,123,"Kőműves kanál 180-as magyar ",null,"db",1,null,0]
[null,null,124,"Kőműves serpenyő 180mm",null,"db",1,null,0]
[null,null,125,"Kőműves serpenyő 200mm",null,"db",1,null,{"$f":"H139*G139","v":0}]
[null,null,126,"Kötélcsiga 25mm",null,"db",5,null,0]
[null,null,127,"Kötélszív K3",null,"db",5,null,0]
[null,null,128,"Kötélszív K4",null,"db",10,null,0]
[null,null,129,"Kötélszorító bilincs M5",null,"db",15,null,0]
[null,null,130,"Kötöző fém gumi 2,5 mm",null,"csomag",1,null,0]
[null,null,131,"Kötöző fém PVC 2,5 mm",null,"csomag",1,null,0]
[null,null,132,"KPE átmenet 25 x 1” B",null,"db",5,null,0]
[null,null,133,"KPE átmenet 25 x 1” K",null,"db",5,null,0]
[null,null,134,"KPE Könyök DN 25 x 1” B ",null,"db",5,null,0]
[null,null,135,"KPE Könyök DN 25 x 25 ",null,"db",5,null,0]
[null,null,136,"KPE szűkítős toldó DN 32 x 25",null,"db",5,null,0]
[null,null,137,"KPE T DN 32 x 32 x 32 ",null,"db",5,null,0]
[null,null,138,"KPE T-idom DN 25 x 1” B",null,"db",10,null,0]
[null,null,139,"Ládabontó VS-900",null,"db",1,null,0]
[null,null,140,"Lágyhuzal horganyzott 1,8mm",null,"méter",10,null,0]
[null,null,141,"Lágyhuzal horganyzott 2,5mm",null,"méter",10,null,0]
[null,null,142,"Lakatpánt csuklós 12cm",null,"db",5,null,0]
[null,null,143,"Lakatpánt csuklós sajtolt 160 -as",null,"db",5,null,0]
[null,null,144,"Lámpahorog 6*80",null,"db",10,null,0]
[null,null,145,"Lánc lapos,folyó 60-as horganyzott LFD60H",null,"db",10,null,0]
[null,null,146,"Lánc lapos,folyó 60-as horganyzott",null,"méter",30,null,0]
[null,null,147,"Lánc rövidszemű horg olasz 3mm",null,"méter",20,null,0]
[null,null,148,"Lánc rövidszemű horg olasz 6mm",null,"méter",5,null,0]
[null,null,149,"Lánc rövidszemű horg. Olasz 6 mm",null,"méter",5,null,0]
[null,null,150,"Lapát termény műanyag 38cm",null,"db",5,null,0]
[null,null,151,"Lapátnyél 1x hajlitott",null,"db",1,null,0]
[null,null,152,"Lapátnyél 2xhajlított",null,"db",1,null,0]
[null,null,153,"Leszúrótüske fém 1/2\" kétutas ",null,"db",5,null,0]
[null,null,154,"Locsoló 1,5L",null,"db",1,null,0]
[null,null,155,"Locsoló billenős 16 fúvóka",null,"db",5,null,0]
[null,null,156,"Locsoló kanna  4  liter",null,"db",5,null,0]
[null,null,157,"Locsoló kanna 10 liter",null,"db",5,null,0]
[null,null,158,"Locsoló kanna 12 liter",null,"db",5,null,0]
[null,null,159,"Locsoló kanna 4,5 liter",null,"db",5,null,0]
[null,null,160,"Locsolófej cink szektoros 1/2\" AR7201 1757",null,"db",5,null,0]
[null,null,161,"Locsolópisztoly ECO fém Zebra 7f ECO7203",null,"db",5,null,0]
[null,null,162,"Locsolópisztoly fém",null,"db",5,null,0]
[null,null,163,"LPE cső DN 20 PN 3,2 MG-i PE",null,"méter",30,null,0]
[null,null,164,"LPE könyök 20 x 20",null,"db",5,null,0]
[null,null,165,"LPE T idom DN 20",null,"db",5,null,0]
[null,null,166,"LPE záró DN 20",null,"db",5,null,0]
[null,null,167,"Marhatrágya, komposztált 40 l",null,"zsák",100,null,0]
[null,null,168,"Metszőolló 18 cm",null,"db",5,null,0]
[null,null,169,"Metszőolló 21 cm",null,"db",5,null,0]
[null,null,170,"Metszőolló Felco 14-es",null,"db",5,null,0]
[null,null,171,"Metszőolló Felco 6-os ",null,"db",5,null,0]
[null,null,172,"Metszőolló Felco 8-as",null,"db",5,null,0]
[null,null,173,"Metszőolló Muta 20",null,"db",5,null,0]
[null,null,174,"Mg.szórófej coolnet párásító 4 x 7,5 l/ h szerelt",null,"db",30,null,0]
[null,null,175,"Műanyag alátét 10 cm",null,"db",1,null,0]
[null,null,176,"Műanyag alátét 12 cm",null,"db",1,null,0]
[null,null,177,"Műanyag alátét 14 cm",null,"db",1,null,0]
[null,null,178,"Műanyag alátét 16 cm",null,"db",1,null,0]
[null,null,179,"Műanyag alátét 18 cm",null,"db",1,null,0]
[null,null,180,"Műanyag alátét 21 cm",null,"db",1,null,0]
[null,null,181,"Műanyag alátét 21 cm",null,"db",1,null,0]
[null,null,182,"Műanyag alátét 24 cm",null,"db",1,null,0]
[null,null,183,"Műanyag alátét 30 cm",null,"db",1,null,0]
[null,null,184,"Műanyag alátét 32 cm",null,"db",1,null,0]
[null,null,185,"Műanyag alátét 36 cm",null,"db",1,null,0]
[null,null,186,"Műanyag alátét 40 cm",null,"db",1,null,0]
[null,null,187,"Műanyag alátét 50 cm",null,"db",1,null,0]
[null,null,188,"Műanyag alátét 8 cm",null,"db",1,null,0]
[null,null,189,"Műanyag cserép, vörös, 10 cm",null,"db",10,null,{"$f":"H203*G203","v":0}]
[null,null,190,"Műanyag cserép, vörös, 12 cm",null,"db",1,null,0]
[null,null,191,"Műanyag cserép, vörös, 14 cm",null,"db",1,null,0]
[null,null,192,"Műanyag cserép, vörös, 15 cm",null,"db",1,null,0]
[null,null,193,"Műanyag cserép, vörös, 18 cm",null,"db",1,null,0]
[null,null,194,"Műanyag cserép, vörös, 20 cm",null,"db",1,null,0]
[null,null,195,"Műanyag cserép, vörös, 25 cm",null,"db",1,null,0]
[null,null,196,"Műanyag cserép, vörös, 30 cm",null,"db",1,null,0]
[null,null,197,"Műanyag cserép, vörös, 35 cm",null,"db",50,null,0]
[null,null,198,"Műanyag cserép, vörös, 50 cm",null,"db",60,null,0]
[null,null,199,"Műanyag cserép, vörös, 60 cm",null,"db",100,null,0]
[null,null,200,"Műanyag cserép, vörös, 80 cm",null,"db",50,null,0]
[null,null,201,"Műanyag cserép, vörös, 90 cm",null,"db",1,null,0]
[null,null,202,"Műanyag cserép, vörös,16 cm",null,"db",10,null,0]
[null,null,203,"Műanyag karmantyú NA ¾”",null,"db",5,null,0]
[null,null,204,"Műanyag kaspó 25 cm",null,"db",10,null,0]
[null,null,205,"Műanyag kaspó 30 cm",null,"db",10,null,0]
[null,null,206,"Műanyag közcsavar ¾”",null,"db",5,null,0]
[null,null,207,"Műanyag vízszűrő NA 6/4\" acélhálós",null,"db",1,null,0]
[null,null,208,"Műanyag vízszűrőhöz szűrőbetét NA 6/4\" acélhálós",null,"db",1,null,0]
[null,null,209,"Neopát ültetőközeg 60-70L kókuszrost kb. 3,5kg",null,"db",5,null,0]
[null,null,210,"Öntözőpisztoly 6funkciós fém kézv AN3004 13378",null,"db",5,null,0]
[null,null,211,"Öntözőpisztoly 6funkciós fém kézv",null,"db",5,null,0]
[null,null,212,"Öntözőrózsa Lux K12TP",null,"db",5,null,0]
[null,null,213,"Öntözőszár 10 funkciós",null,"db",5,null,0]
[null,null,214,"Pázsitseprű pálcás Muta nyelezett",null,"db",30,null,0]
[null,null,215,"Penge tapétavágóhoz 18 mm",null,"csomag",5,null,0]
[null,null,216,"Permetező kézi 2,5 liter",null,"db",5,null,0]
[null,null,217,"Permetező kézi Garden 10L",null,"db",5,null,0]
[null,null,218,"Permetező pisztoly csatlakozó 10 mm",null,"db",5,null,0]
[null,null,219,"Permetező pisztoly csatlakozó 8mm ",null,"db",5,null,0]
[null,null,220,"Ponthegesztett háló 12,7 x 12,7/0,8",null,"méter",10,null,0]
[null,null,221,"Ponthegesztett háló 13 x 25/1,4/1 m",null,"méter",20,null,0]
[null,null,222,"Ponthegesztett háló 6,4 x 6,4/0,6",null,"méter",20,null,0]
[null,null,223,"PP szövött gabonás zsák 55 x100 cm",null,"db",20,null,0]
[null,null,224,"PP tokelzáró 32 mm",null,"db",5,null,0]
[null,null,225,"PP Zsineg színes 0,6 200g",null,"db",5,null,0]
[null,null,226,"Protect darázsírtó spray 750 ml",null,"db",1,null,0]
[null,null,227,"Protect rágcsálóírtó pép 150 g Ratimor",null,"db",5,null,0]
[null,null,228,"Protect szúnyog, kullancs riasztó spray 100 ml",null,"db",100,null,0]
[null,null,229,"PVC cső 50*2m sima",null,"db",10,null,0]
[null,null,230,"PVC cső 50*2m tokos",null,"db",5,null,0]
[null,null,231,"PVC visszacsapószelep fejszelep 63/63",null,"db",1,null,0]
[null,null,232,"Ruhaszárító kötél drótos ",null,"db",5,null,0]
[null,null,233,"Saraboló nyelezett magyar acél 15cm",null,"db",10,null,0]
[null,null,234,"Savanyúságos vödör 18L",null,"db",5,null,0]
[null,null,235,"Savanyúságos vödör 2 L",null,"db",5,null,0]
[null,null,236,"Savanyúságos vödör 4 L",null,"db",1,null,0]
[null,null,237,"Sodrony kötél 3 mm",null,"méter",15,null,0]
[null,null,238,"Sodrony kötél 4 mm",null,"méter",20,null,0]
[null,null,239,"Spatulya rugalmas fanyeles 70mm",null,"db",5,null,0]
[null,null,240,"Szárító kötél 3 mm",null,"db",1,null,0]
[null,null,241,"Szárítókötél acélbetétes 3mm 25fm ",null,"db",5,null,0]
[null,null,242,"Szegletvas 40-es ",null,"db",10,null,0]
[null,null,243,"Szegletvas 80-as",null,"db",10,null,0]
[null,null,244,"Szenes lapát kicsi, fémnyéllel",null,"db",1,null,0]
[null,null,245,"Szögletes alátét  17,5 cm",null,"db",1,null,0]
[null,null,246,"Szögletes alátét  26,5 cm",null,"db",1,null,0]
[null,null,247,"Szögletes alátét  35 cm",null,"db",1,null,0]
[null,null,248,"Szögletes alátét  44 cm",null,"db",1,null,0]
[null,null,249,"Szögletes cserép 20 cm",null,"db",1,null,0]
[null,null,250,"Szögletes cserép 30 cm",null,"db",1,null,0]
[null,null,251,"Szögletes cserép 40 cm",null,"db",1,null,0]
[null,null,252,"Szögletes cserép 50 cm",null,"db",1,null,0]
[null,null,253,"Szögletes cserép 9*9",null,"db",780,null,{"$f":"H267*G267","v":0}]
[null,null,254,"Szúnyogháló üvegszálas szürke, zöld 1,5 m",null,"méter",10,null,0]
[null,null,255,"Szúnyogháló üvegszálas szürke, zöld 1,5 m",null,"méter",10,null,0]
[null,null,256,"Szúnyogirtó spriál",null,"db",10,null,0]
[null,null,257,"Szúnyogirtó spriál",null,"db",10,null,0]
[null,null,258,"Szúnyogriasztó lámpaolaj 1L",null,"db",5,null,0]
[null,null,259,"Szüretelő olló egyenes 19 mm",null,"db",5,null,0]
[null,null,260,"Szüretelő olló egyenes 19 mm",null,"db",5,null,0]
[null,null,261,"Táblatörlő szivacs",null,"db",15,null,0]
[null,null,262,"Talicska puttony szlovák",null,"db",5,null,0]
[null,null,263,"Talicska szlovák",null,"db",5,null,0]
[null,null,264,"Tapétavágó kés 18 mm",null,"db",5,null,0]
[null,null,265,"Tapétavágó kés betét 18mm ",null,"csomag",30,null,0]
[null,null,266,"Tapétavágó kés csavaros rögzítés Alu fémház ",null,"db",10,null,0]
[null,null,267,"Teflonszalag gázra",null,"db",1,null,0]
[null,null,268,"Terménylapát műanyag 38 cm",null,"db",1,null,0]
[null,null,269,"Toldó körmös ½”",null,"db",1,null,0]
[null,null,270,"Toldó körmös ¾” ",null,"db",10,null,0]
[null,null,271,"Tölcsér 10cm",null,"db",1,null,0]
[null,null,272,"Tölcsér 14cm",null,"db",1,null,0]
[null,null,273,"Tölcsér 18cm",null,"db",1,null,0]
[null,null,274,"Tömítés gumi 1\" 32x 44 mm",null,"db",5,null,0]
[null,null,275,"Tömlő 1/2\" 30 méter",null,"db",1,null,0]
[null,null,276,"Tömlő 1/2\" 50 méter",null,"db",1,null,0]
[null,null,277,"Tömlő 3/4\" 30 méter",null,"db",1,null,0]
[null,null,278,"Tömlő 3/4\" 50 méter",null,"db",10,null,0]
[null,null,279,"Tömlő bilincs 10-16/9",null,"db",5,null,0]
[null,null,280,"Tömlő bilincs 20-32/12",null,"db",5,null,0]
[null,null,281,"Tömlő bilincs 25-40/12",null,"db",5,null,0]
[null,null,282,"Tömlő bilincs 40-60/12",null,"db",5,null,0]
[null,null,283,"Tömlő bilincs 8-12/9",null,"db",5,null,0]
[null,null,284,"Tömlő toldó 1/2\" ",null,"db",5,null,0]
[null,null,285,"Tömlő toldó 1/2\" - 3/4\"",null,"db",10,null,0]
[null,null,286,"Tömlő víztiszta 19x24mm",null,"méter",5,null,0]
[null,null,287,"Tömlő víztiszta 25x30mm",null,"méter",5,null,0]
[null,null,288,"Tömlőcsatlakozó, ½” ",null,"db",50,null,0]
[null,null,289,"Tömlőcsatlakozó, ½”, indító",null,"db",50,null,0]
[null,null,290,"Tömlőcsatlakozó, ¾” ",null,"db",50,null,0]
[null,null,291,"Tömlőcsatlakozó, ¾”, indító",null,"db",50,null,0]
[null,null,292,"Tömlőcsatlakozó, 1”, anyamenet",null,"db",10,null,0]
[null,null,293,"Tömlőfolt N2",null,"csomag",20,null,0]
[null,null,294,"Tömlőkocsi fém 3/4\"-35m 1/2\"-100m ",null,"db",10,null,0]
[null,null,295,"Tömlőösszekötő  3/4\"",null,"db",20,null,0]
[null,null,296,"Tömlővég fém 6/4\" - 6/4\"",null,"db",10,null,0]
[null,null,297,"Tömlővég réz 1/2\"-1/2\"",null,"db",5,null,0]
[null,null,298,"Tömlővég réz KM 1/2\"-1/2\" ",null,"db",10,null,0]
[null,null,299,"Tőzeg, Kekkila DSM 3W 300 liter ",null,"zsák",100,null,0]
[null,null,300,"Tőzeg, Novobalt Lithpeat 250 liter",null,"zsák",120,null,0]
[null,null,301,"Tyúktrágya, granulátum",null,"zsák",50,null,0]
[null,null,302,"Útszóró Kalciumklorid pehely 25kg környezetbarát",null,"zsák",5,null,0]
[null,null,303,"Ültető láda szaporítóláda",null,"db",350,null,0]
[null,null,304,"Vadháló 200 x150x 16 50 m",null,"db",1,null,0]
[null,null,305,"Vetőmag, articsóka Agrosel",null,"csomag",5,null,0]
[null,null,306,"Vetőmag, bimbós kel",null,"csomag",1,null,0]
[null,null,307,"Vetőmag, bokorbab, Bodor",null,"csomag",1,null,0]
[null,null,308,"Vetőmag, bokorbab,lapos",null,"csomag",1,null,0]
[null,null,309,"Vetőmag, brokkoli",null,"csomag",1,null,0]
[null,null,310,"Vetőmag, búzavirág, kék",null,"csomag",1,null,0]
[null,null,311,"Vetőmag, cékla Detroit",null,"csomag",5,null,0]
[null,null,312,"Vetőmag, citrom illatú bazsalikom",null,"csomag",1,null,0]
[null,null,313,"Vetőmag, cukkini",null,"csomag",1,null,0]
[null,null,314,"Vetőmag, cukorrépa",null,"csomag",1,null,0]
[null,null,315,"Vetőmag, csemegekukorica",null,"csomag",1,null,0]
[null,null,316,"Vetőmag, csicseriborsó",null,"csomag",1,null,0]
[null,null,317,"Vetőmag, dísznapraforgó holdfény",null,"csomag",1,null,{"$f":"H331*G331","v":0}]
[null,null,318,"Vetőmag, dísztök keverék, nagygyümölcsű",null,"csomag",1,null,0]
[null,null,319,"Vetőmag, dísztök, bohócsapka",null,"csomag",1,null,0]
[null,null,320,"Vetőmag, dísztök, Lopó",null,"csomag",1,null,0]
[null,null,321,"Vetőmag, dísztök, Luffatök, szivacstök",null,"csomag",1,null,0]
[null,null,322,"Vetőmag, dísztök, turbántök",null,"csomag",1,null,0]
[null,null,323,"Vetőmag, dughagyma",null,"csomag",1,null,0]
[null,null,324,"Vetőmag, édeskömény",null,"csomag",1,null,0]
[null,null,325,"Vetőmag, estike",null,"csomag",1,null,0]
[null,null,326,"Vetőmag, facélia",null,"csomag",1,null,0]
[null,null,327,"Vetőmag, fahéj illatú bazsalikom",null,"csomag",1,null,0]
[null,null,328,"Vetőmag, fejeskáposzta",null,"csomag",1,null,0]
[null,null,329,"Vetőmag, feketegyökér",null,"csomag",1,null,0]
[null,null,330,"Vetőmag, fokhagyma tavaszi",null,"csomag",1,null,0]
[null,null,331,"Vetőmag, földimogyoró ",null,"csomag",1,null,0]
[null,null,332,"Vetőmag, görögdinnye",null,"csomag",1,null,0]
[null,null,333,"Vetőmag, gumóskömény",null,"csomag",1,null,0]
[null,null,334,"Vetőmag, harangvirág",null,"csomag",1,null,0]
[null,null,335,"Vetőmag, héjastök",null,"csomag",1,null,0]
[null,null,336,"Vetőmag, hokkaidó tök",null,"csomag",1,null,0]
[null,null,337,"Vetőmag, jégsaláta",null,"csomag",1,null,0]
[null,null,338,"Vetőmag, kapor",null,"csomag",1,null,0]
[null,null,339,"Vetőmag, karalábé csemege fehér ",null,"csomag",1,null,0]
[null,null,340,"Vetőmag, karfiol",null,"csomag",1,null,0]
[null,null,341,"Vetőmag, karósbab",null,"csomag",1,null,0]
[null,null,342,"Vetőmag, kelkáposzta",null,"csomag",1,null,0]
[null,null,343,"Vetőmag, kerti borágó",null,"csomag",1,null,0]
[null,null,344,"Vetőmag, kerti laboda Agrosel",null,"csomag",1,null,0]
[null,null,345,"Vetőmag, kerti zsázsa",null,"csomag",1,null,0]
[null,null,346,"Vetőmag, kolbásztök",null,"csomag",1,null,0]
[null,null,347,"Vetőmag, konyhakömény",null,"csomag",1,null,0]
[null,null,348,"Vetőmag, koriander",null,"csomag",1,null,0]
[null,null,349,"Vetőmag, korsótök",null,"csomag",1,null,0]
[null,null,350,"Vetőmag, laskatök",null,"csomag",1,null,0]
[null,null,351,"Vetőmag, laskatök, istengyalulta tök",null,"csomag",1,null,0]
[null,null,352,"Vetőmag, len",null,"csomag",1,null,0]
[null,null,353,"Vetőmag, metélőhagyma",null,"csomag",1,null,0]
[null,null,354,"Vetőmag, mustár",null,"csomag",1,null,0]
[null,null,355,"Vetőmag, napraforgó színkeverék",null,"csomag",1,null,0]
[null,null,356,"Vetőmag, nyári ciprus Kochia",null,"csomag",1,null,0]
[null,null,357,"Vetőmag, okra",null,"csomag",1,null,0]
[null,null,358,"Vetőmag, olajtök ",null,"csomag",1,null,0]
[null,null,359,"Vetőmag, óriás levelű bazsalikom",null,"csomag",1,null,0]
[null,null,360,"Vetőmag, óriás tök",null,"csomag",1,null,0]
[null,null,361,"Vetőmag, orosz tárkony, Artemisia",null,"csomag",1,null,0]
[null,null,362,"Vetőmag, őszi mák",null,"csomag",1,null,0]
[null,null,363,"Vetőmag, padlizsán",null,"csomag",1,null,0]
[null,null,364,"Vetőmag, patisszon",null,"csomag",1,null,0]
[null,null,365,"Vetőmag, patisszon Óvári fehér",null,"csomag",5,null,0]
[null,null,366,"Vetőmag, pattogatni való kukorica",null,"csomag",1,null,0]
[null,null,367,"Vetőmag, petrezselyem",null,"csomag",5,null,0]
[null,null,368,"Vetőmag, piros levelű bazsalikom",null,"csomag",1,null,0]
[null,null,369,"Vetőmag, repce",null,"csomag",1,null,0]
[null,null,370,"Vetőmag, retek",null,"csomag",1,null,0]
[null,null,371,"Vetőmag, sáfrányos szeklice",null,"csomag",5,null,0]
[null,null,372,"Vetőmag, salátapitypang",null,"csomag",1,null,0]
[null,null,373,"Vetőmag, sárgadinnye",null,"csomag",1,null,0]
[null,null,374,"Vetőmag, sárgahüvelyű bokorbab",null,"csomag",1,null,0]
[null,null,375,"Vetőmag, sárgahüvelyű bokorbab",null,"csomag",1,null,0]
[null,null,376,"Vetőmag, sárgarépa",null,"csomag",1,null,0]
[null,null,377,"Vetőmag, sarkantyúka alacsony",null,"csomag",5,null,0]
[null,null,378,"Vetőmag, sarkantyúka kúszó",null,"csomag",1,null,0]
[null,null,379,"Vetőmag, spagettitök",null,"csomag",5,null,0]
[null,null,380,"Vetőmag, spárgatök, alba",null,"csomag",1,null,0]
[null,null,381,"Vetőmag, spenót",null,"csomag",1,null,{"$f":"H395*G395","v":0}]
[null,null,382,"Vetőmag, sütőtök",null,"csomag",1,null,0]
[null,null,383,"Vetőmag, sütőtök Kiszombori",null,"csomag",1,null,0]
[null,null,384,"Vetőmag, sütőtök Óvári hengeres",null,"csomag",1,null,0]
[null,null,385,"Vetőmag, sütőtök, Nagydobosi",null,"csomag",1,null,0]
[null,null,386,"Vetőmag, szárazbab",null,"csomag",1,null,0]
[null,null,387,"Vetőmag, takarmányrépa",null,"csomag",1,null,0]
[null,null,388,"Vetőmag, takarmánytök sárga óriás",null,"csomag",1,null,0]
[null,null,389,"Vetőmag, tavaszi fokhagyma",null,"csomag",1,null,0]
[null,null,390,"Vetőmag, tavaszi mák",null,"csomag",1,null,0]
[null,null,391,"Vetőmag, tehénbab, méteresbab",null,"csomag",1,null,0]
[null,null,392,"Vetőmag, tépősaláta",null,"csomag",1,null,0]
[null,null,393,"Vetőmag, törpe hajnalka színkeverék",null,"csomag",1,null,0]
[null,null,394,"Vetőmag, turbántök",null,"csomag",1,null,0]
[null,null,395,"Vetőmag, tűzbab",null,"csomag",1,null,0]
[null,null,396,"Vetőmag, uborka",null,"csomag",1,null,0]
[null,null,397,"Vetőmag, új-zélandi spenót",null,"csomag",1,null,0]
[null,null,398,"Vetőmag, velőborsó Zsuzsi",null,"csomag",1,null,0]
[null,null,399,"Vetőmag, vöröshagyma",null,"csomag",1,null,0]
[null,null,400,"Vetőmag, vöröskáposzta ",null,"csomag",1,null,0]
[null,null,401,"Vetőmag, zeller neon",null,"csomag",1,null,0]
[null,null,402,"Vetőmag, zeller, szárzeller",null,"csomag",1,null,0]
[null,null,403,"Vetőmag, zöldhüvelyű bokorbab",null,"csomag",5,null,0]
[null,null,404,"Vinilfix 125gr",null,"db",1,null,0]
[null,null,405,"Vödör horganyzott 10L",null,"db",10,null,0]
[null,null,406,"Vödör horganyzott 12L",null,"db",10,null,0]
[null,null,407,"Vödör horganyzott 5L",null,"db",10,null,0]
[null,null,408,"Vödör műanyag 20L",null,"db",10,null,0]
[null,null,409,"Vödör műanyag R színes 12L",null,"db",10,null,0]
[null,null,410,"Vulkanizáló folyadék Tip-Top 10g",null,"db",10,null,0]
[null,null,411,"Zsák PE 550*1150*0,12 Fekete 40kg",null,"db",50,null,0]
[null,null,null,"INSECTICID:"]
[null,null,412,"Cyperkill 25 EC  ","50ml","db",5,null,0]
[null,null,413,"Cyperkill 25 EC  ","0,2l","db",1,null,0]
[null,null,414,"Cyperkill 25 EC  ","1l","db",1,null,0]
[null,null,415,"Mospilan 20 SG","4g","db",2,null,0]
[null,null,416,"Mospilan 20 SG","50g","db",1,null,0]
[null,null,417,"Mospilan 20 SG","0,2kg","db",1,null,0]
[null,null,418,"Mospilan 20 SG","1kg","db",1,null,0]
[null,null,419,"Spilan 20 SG 4g","4g","db",3,null,0]
[null,null,420," Spilan 20 SG 100g","100g","db",1,null,0]
[null,null,421,"Admirál 10 EC","0,2l","db",2,null,0]
[null,null,422,"Coragen 20 SC","2,5ml","db",1,null,0]
[null,null,423,"Coragen 20 SC","200ml","db",1,null,0]
[null,null,424,"Coragen 20 SC","1l","db",1,null,0]
[null,null,425,"Karate Zeon 5 CS","2,5ml","db",10,null,0]
[null,null,426,"Karate Zeon 5 CS","0,25l","db",1,null,0]
[null,null,427,"Karate Zeon 5 CS","1l","db",1,null,0]
[null,null,428,"NeemAzal-T/S","50ml","db",1,null,0]
[null,null,429,"NeemAzal-T/S","1l","db",1,null,0]
[null,null,430,"Organic/Prev-Gold","1l","db",1,null,0]
[null,null,431,"Sherpa 100 EC","1X10ml","db",1,null,0]
[null,null,432,"Sherpa 100 EC","50ml","db",1,null,{"$f":"H447*G447","v":0}]
[null,null,433,"Sherpa 100 EC","0,2l","db",3,null,{"$f":"H448*G448","v":0}]
[null,null,434,"Vektafid A ","1l","db",2,null,0]
[null,null,null,"AKARICID:"]
[null,null,435,"Flumite 200","5ml","db",30,null,0]
[null,null,436,"Flumite 201","5X5ml","db",1,null,0]
[null,null,437,"Flumite 202","0,1l","db",1,null,0]
[null,null,438,"Nissorun 10 WP","20g","db",1,null,0]
[null,null,439,"Nissorun 10 WP","100g","db",1,null,0]
[null,null,440,"Nissorun 10 WP","0,5kg","db",1,null,0]
[null,null,441,"Ortus 5SC","5ml","db",1,null,0]
[null,null,442,"Ortus 5SC","50ml","db",1,null,0]
[null,null,443,"Ortus 5SC","0,2l","db",6,null,0]
[null,null,444,"Ortus 5SC","0,5l","db",2,null,0]
[null,null,445,"Vertimec Pro","0,25l","db",1,null,0]
[null,null,446,"Vertimec Pro","1l","db",1,null,0]
[null,null,null,"FUNGICID:"]
[null,null,447,"Alfa Solo","1X3ml","db",1,null,0]
[null,null,448,"Alfa Solo","3X3ml","db",1,null,0]
[null,null,449,"Alfa Solo","100ml","db",1,null,0]
[null,null,450,"Amistar","10ml","db",1,null,0]
[null,null,451,"Amistar","0,2l","db",1,null,0]
[null,null,452,"Amistar","1l","db",1,null,0]
[null,null,453,"Champion WG","0,15kg","db",1,null,0]
[null,null,454,"Champion WG","0,5kg","db",1,null,0]
[null,null,455,"Champion WG","1kg","db",1,null,0]
[null,null,456,"Chorus 50WG","4,5g","db",1,null,0]
[null,null,457,"Chorus 50WG","25g","db",1,null,0]
[null,null,458,"Chorus 50WG","0,2kg","db",1,null,0]
[null,null,459,"Chorus 50WG","1kg","db",1,null,0]
[null,null,460,"Cuproxat FW","0,2l","db",1,null,0]
[null,null,461,"Cuproxat FW","1l","db",1,null,0]
[null,null,462,"Dithane M-45","20g","db",1,null,0]
[null,null,463,"Folicur Solo","0,25l","db",1,null,0]
[null,null,464,"Folicur Solo","1l","db",1,null,0]
[null,null,465,"Quadris","10ml","db",1,null,0]
[null,null,466,"Quadris","0,2l","db",1,null,0]
[null,null,467,"Rhidomil Gold Plusz 42,5 WP","40g","db",1,null,0]
[null,null,468,"Score 250 EC","2,5ml","db",1,null,0]
[null,null,469,"Score 250 EC","5X5ml","db",1,null,0]
[null,null,470,"Score 250 EC","0,1l","db",1,null,0]
[null,null,471,"Score 250 EC","1l","db",1,null,0]
[null,null,472,"Switch 62,5 WG","10g","db",1,null,0]
[null,null,473,"Switch 62,5 WG","100g","db",1,null,0]
[null,null,474,"Switch 62,5 WG","1kg","db",1,null,0]
[null,null,475,"Teldor/Texio 500SC","10ml","db",1,null,0]
[null,null,476,"Teldor/Texio 500SC","0,1l","db",1,null,0]
[null,null,477,"Thiovit Jet","30g","db",1,null,0]
[null,null,478,"Thiovit Jet","0,25kg","db",1,null,0]
[null,null,479,"Thiovit Jet","1kg","db",1,null,0]
[null,null,480,"Topas 100 EC","2,5ml","db",1,null,0]
[null,null,481,"Topas 100 EC","5X5ml","db",1,null,0]
[null,null,482,"Topas 100 EC","0,1l","db",1,null,0]
[null,null,483,"Topas 100 EC","1 l","db",1,null,0]
[null,null,null,"HERBICID:"]
[null,null,484,"Fozát 480 NEW","1l","db",1,null,0]
[null,null,485,"Fozát 480 NEW","5l","db",2,null,0]
[null,null,486,"Glialka Star","1l","db",1,null,{"$f":"H504*G504","v":0}]
[null,null,487,"Glialka Star","5l","db",1,null,0]
[null,null,488,"Medalon Premium","0,2l","db",1,null,0]
[null,null,489,"Medalon Premium","1l","db",1,null,0]
[null,null,490,"Medalon Premium","5l","db",1,null,0]
[null,null,491,"Stomp Aqua","0,2l","db",1,null,0]
[null,null,492,"Stomp Aqua","0,75l","db",1,null,0]
[null,null,493,"Stomp Aqua","10l","db",1,null,0]
[null,null,494,"Total","0,2l","db",1,null,0]
[null,null,495,"Total","1l","db",1,null,0]
[null,null,496,"Total","5l","db",1,null,0]
[null,null,null,"Lemosó szer:"]
[null,null,497,"Agrokén","0,25l","db",1,null,0]
[null,null,498,"Agrokén","1l","db",1,null,0]
[null,null,499,"Bordóilé NEO","0,5l","db",1,null,0]
[null,null,500,"Bordóilé NEO","1l","db",1,null,0]
[null,null,501,"Bordóilé NEO","5l","db",1,null,0]
[null,null,502,"Olajos Rézkén SE","0,25l","db",1,null,0]
[null,null,503,"Olajos Rézkén SE","1l","db",1,null,0]
[null,null,504,"Vegesol eReS","0,2l","db",1,null,0]
[null,null,505,"Vegesol eReS","1l","db",4,null,0]
[null,null,506,"Vegesol eReS","5l","db",1,null,0]
[null,null,null,"Talajfertőtlenítő:"]
[null,null,507,"Basamid G","0,6kg","db",5,null,0]
[null,null,508,"Basamid G","5kg","db",1,null,0]
[null,null,509,"Force 1,5 G","0,5kg","db",2,null,{"$f":"H529*G529","v":0}]
[null,null,null,"Termésnövelő anyagok:"]
[null,null,510,"Fagél","120ml","db",4,null,0]
[null,null,511,"Fagél","0,5kg","db",1,null,0]
[null,null,512,"Nonit","0,15kg","db",1,null,0]
[null,null,513,"Nonit","0,5kg","db",1,null,0]
[null,null,514,"Kendal ","1l","db",1,null,0]
[null,null,515,"Kendal ","5l","db",1,null,0]
[null,null,516,"Amalgerol","1l","db",13,null,0]
[null,null,517,"Amalgerol","3l","db",6,null,0]
[null,null,518,"Universol 16-5-25 Narancs ","25kg ","db",1,null,0]
[null,null,519,"Osmocote Pro 5-6 hónapos Káliumos 11-10-19+2MgO ","25 kg ","db",3,null,0]
[null,null,520,"Substral tápoldat orchideához ","0,25 l ","db",24,null,0]
[null,null,521,"Substral tápoldat kaktuszfélék és pozsgások számára ","0,25 l","db",10,null,0]
[null,null,522,"Substral életerő minden növénynek - Grünkorn ","3kg","db",1,null,0]
[null,null,523,"Substral életerő minden növénynek - Grünkorn ","7kg","db",1,null,0]
[null,null,524,"Substral életerő minden növénynek - Grünkorn ","15 kg ","db",1,null,0]
[null,null,525,"Substral növényvarázs fenyőfélékhez és más savanyú talajt kedvelő növényekhez ","350 g ","db",1,null,0]
[null,null,526,"Substral növényvarázs indító rhododendron trágya ","350 g","db",9,null,0]
[null,null,527,"Substral tápoldat kaktusz pozsgás 0,25","0,25 l","db",13,null,0]
[null,null,528,"Substral tápoldat orchideákhoz 0,25L","0,25 l","db",24,null,0]
[null,null,529,"Substral táprúd Careo 2in1 rovarölő 20db","20 db-os","csg",11,null,0]
[null,null,530,"Műtrágya Kálisó ","10 kg","db",6,null,0]
[null,null,531,"Szuperfoszfát ","10 kg","db",5,null,0]
[null,null,532,"Kombinált műtrágya 15-15-15 ","10 kg","db",1,null,0]
[null,null,533,"Subtral táprúd Careo 2 in 1 rövarölő ","20db","db",11,null,0]
[null,null,534,"Műtrágya ","25 kg","db",2,null,0]
[null,null,535,"EmBio bioenzim ","20 l","db",2,null,0]
[null,null,536,"Vasgálic ","1 kg","db",3,null,0]
[null,null,537,"Citromsav","1 kg","db",13,null,0]
[null,null,538,"Citromsav ","5 kg","db",1,null,0]
[null,null,539,"Keserűsó ","5 kg","db",1,null,0]
[{"$nulls":7},"Mindösszesen nettó ár: ",{"$f":"SUM(I15:I425,I427:I449,I451:I462,I464:I500,I502:I514,I516:I525,I531:I560,I527:I529)","v":0}]